[Event "Titled Tuesday Blitz November 07 Early 2023"]
[White "Doctor_Luber"]
[Black "Schut, Han"]
[BlackFideId "1005561"]
[WhiteElo "2622"]
[BlackElo "2300"]
[Result "1-0"]
[Round "1"]
[TimeControl "180+1"]
[Date "2023.11.07"]
[WhiteClock "0:00:58"]
[BlackClock "0:00:09"]
[Board "179"]

1. e4 {[%clk 0:02:56]}  c5 {[%clk 0:02:59]} 2. Nf3 {[%clk 0:02:55]}  d6 {[%clk 0:02:59]} 3. Nc3 {[%clk 0:02:56]}  Nf6 {[%clk 0:02:59]} 4. d4 {[%clk 0:02:55]}  cxd4 {[%clk 0:03:00]} 5. Nxd4 {[%clk 0:02:54]}  a6 {[%clk 0:03:01]} 6. Bd3 {[%clk 0:02:54]}  g6 {[%clk 0:03:00]} 7. O-O {[%clk 0:02:53]}  Bg7 {[%clk 0:03:01]} 8. Nb3 {[%clk 0:02:52]}  O-O {[%clk 0:03:01]} 9. a4 {[%clk 0:02:52]}  Nc6 {[%clk 0:03:00]} 10. h3 {[%clk 0:02:52]}  Be6 {[%clk 0:03:00]} 11. Be3 {[%clk 0:02:52]}  Rc8 {[%clk 0:03:00]} 12. Qe2 {[%clk 0:02:50]}  d5 {[%clk 0:03:00]} 13. exd5 {[%clk 0:02:48]}  Bxd5 {[%clk 0:03:00]} 14. Nxd5 {[%clk 0:02:46]}  Nxd5 {[%clk 0:03:01]} 15. Bc1 {[%clk 0:02:39]}  Ne5 {[%clk 0:02:52]} 16. Be4 {[%clk 0:02:34]}  Nc4 {[%clk 0:02:44]} 17. Rd1 {[%clk 0:02:31]}  e6 {[%clk 0:02:44]} 18. c3 {[%clk 0:02:25]}  Qb6 {[%clk 0:02:34]} 19. Nd4 {[%clk 0:02:07]}  Nd6 {[%clk 0:02:01]} 20. Bf3 {[%clk 0:01:48]}  Ne7 {[%clk 0:01:25]} 21. a5 {[%clk 0:01:42]}  Qc5 {[%clk 0:01:08]} 22. Be3 {[%clk 0:01:23]}  Qc4 {[%clk 0:01:08]} 23. Bg5 {[%clk 0:01:15]}  Nef5 {[%clk 0:01:06]} 24. Qxc4 {[%clk 0:01:13]}  Rxc4 {[%clk 0:00:58]} 25. Nxf5 {[%clk 0:01:12]}  Nxf5 {[%clk 0:00:58]} 26. Bxb7 {[%clk 0:01:11]}  Rb8 {[%clk 0:00:54]} 27. Rd8+ {[%clk 0:01:08]}  Rxd8 {[%clk 0:00:50]} 28. Bxd8 {[%clk 0:01:09]}  Nd6 {[%clk 0:00:25]} 29. Bxa6 {[%clk 0:01:09]}  Rf4 {[%clk 0:00:22]} 30. Bc7 {[%clk 0:01:05]}  Be5 {[%clk 0:00:22]} 31. Rd1 {[%clk 0:01:04]}  Nc4 {[%clk 0:00:18]} 32. g3 {[%clk 0:01:01]}  Re4 {[%clk 0:00:09]} 33. Bb7 {[%clk 0:00:58]} 1-0


[Site "https://www.chess.com"]

[Event "Titled Tuesday Blitz November 07 Early 2023"]
[White "Belov, Alexei"]
[Black "Balla, Tamas-Kristof"]
[WhiteFideId "4128206"]
[BlackFideId "1208497"]
[WhiteElo "2619"]
[BlackElo "2294"]
[Result "1-0"]
[Round "1"]
[TimeControl "180+1"]
[Date "2023.11.07"]
[WhiteClock "0:00:13"]
[BlackClock "0:00:06"]
[Board "183"]

1. e4 {[%clk 0:03:00]}  c5 {[%clk 0:02:59]} 2. Nf3 {[%clk 0:03:00]}  Nc6 {[%clk 0:03:00]} 3. d4 {[%clk 0:03:00]}  cxd4 {[%clk 0:03:01]} 4. Nxd4 {[%clk 0:03:00]}  e5 {[%clk 0:03:01]} 5. Nb5 {[%clk 0:03:00]}  d6 {[%clk 0:03:02]} 6. Bc4 {[%clk 0:03:00]}  Be7 {[%clk 0:02:53]} 7. O-O {[%clk 0:02:59]}  Nf6 {[%clk 0:02:53]} 8. Bg5 {[%clk 0:03:00]}  Be6 {[%clk 0:02:48]} 9. Bd5 {[%clk 0:02:51]}  O-O {[%clk 0:02:25]} 10. Bxf6 {[%clk 0:02:49]}  gxf6 {[%clk 0:02:12]} 11. a4 {[%clk 0:02:34]}  a6 {[%clk 0:01:58]} 12. N5c3 {[%clk 0:02:34]}  Kh8 {[%clk 0:01:56]} 13. Nd2 {[%clk 0:02:30]}  f5 {[%clk 0:01:52]} 14. exf5 {[%clk 0:02:23]}  Bxf5 {[%clk 0:01:52]} 15. Nc4 {[%clk 0:02:18]}  Rc8 {[%clk 0:01:37]} 16. Ne3 {[%clk 0:01:51]}  Bg6 {[%clk 0:01:34]} 17. Bb3 {[%clk 0:01:18]}  f5 {[%clk 0:01:33]} 18. Ned5 {[%clk 0:01:16]}  Nd4 {[%clk 0:01:29]} 19. f4 {[%clk 0:01:12]}  b5 {[%clk 0:00:56]} 20. axb5 {[%clk 0:01:11]}  axb5 {[%clk 0:00:56]} 21. Ra7 {[%clk 0:01:03]}  Bf6 {[%clk 0:00:52]} 22. Nxf6 {[%clk 0:00:55]}  Qxf6 {[%clk 0:00:50]} 23. Nd5 {[%clk 0:00:54]}  Qh4 {[%clk 0:00:48]} 24. c3 {[%clk 0:00:47]}  Nc6 {[%clk 0:00:38]} 25. Rb7 {[%clk 0:00:41]}  Bh5 {[%clk 0:00:37]} 26. Qd2 {[%clk 0:00:36]}  e4 {[%clk 0:00:35]} 27. Ne3 {[%clk 0:00:29]}  Qf6 {[%clk 0:00:33]} 28. Rxb5 {[%clk 0:00:28]}  Bf7 {[%clk 0:00:33]} 29. Rxf5 {[%clk 0:00:25]}  Qg6 {[%clk 0:00:31]} 30. Bxf7 {[%clk 0:00:21]}  Rxf7 {[%clk 0:00:32]} 31. Rxf7 {[%clk 0:00:21]}  Qxf7 {[%clk 0:00:33]} 32. Qxd6 {[%clk 0:00:21]}  Qb7 {[%clk 0:00:29]} 33. b4 {[%clk 0:00:18]}  Rd8 {[%clk 0:00:30]} 34. Qc5 {[%clk 0:00:17]}  Ne7 {[%clk 0:00:29]} 35. f5 {[%clk 0:00:17]}  Rc8 {[%clk 0:00:26]} 36. Qe5+ {[%clk 0:00:17]}  Kg8 {[%clk 0:00:26]} 37. Qe6+ {[%clk 0:00:17]}  Kh8 {[%clk 0:00:26]} 38. Qf7 {[%clk 0:00:17]}  Qa7 {[%clk 0:00:22]} 39. Re1 {[%clk 0:00:15]}  Rxc3 {[%clk 0:00:06]} 40. f6 {[%clk 0:00:13]} 1-0


[Site "https://www.chess.com"]

[Event "Titled Tuesday Blitz November 07 Early 2023"]
[White "Kvaloy, Aksel Bu"]
[Black "ilya2700"]
[WhiteFideId "1528815"]
[WhiteElo "2613"]
[BlackElo "2288"]
[Result "1-0"]
[Round "1"]
[TimeControl "180+1"]
[Date "2023.11.07"]
[WhiteClock "0:01:21"]
[BlackClock "0:00:34"]
[Board "187"]

1. d4 {[%clk 0:02:55]}  Nf6 {[%clk 0:02:58]} 2. Nf3 {[%clk 0:02:56]}  g6 {[%clk 0:02:55]} 3. Bg5 {[%clk 0:02:56]}  Bg7 {[%clk 0:02:53]} 4. Nbd2 {[%clk 0:02:48]}  d5 {[%clk 0:02:53]} 5. e3 {[%clk 0:02:47]}  O-O {[%clk 0:02:53]} 6. c3 {[%clk 0:02:47]}  c5 {[%clk 0:02:52]} 7. Be2 {[%clk 0:02:47]}  Nc6 {[%clk 0:02:52]} 8. O-O {[%clk 0:02:45]}  Bf5 {[%clk 0:02:51]} 9. h3 {[%clk 0:02:43]}  Ne4 {[%clk 0:02:49]} 10. Bf4 {[%clk 0:02:39]}  Re8 {[%clk 0:02:47]} 11. Nxe4 {[%clk 0:02:28]}  dxe4 {[%clk 0:02:28]} 12. Ne5 {[%clk 0:02:26]}  Nxe5 {[%clk 0:02:28]} 13. Bxe5 {[%clk 0:02:27]}  Bxe5 {[%clk 0:02:28]} 14. dxe5 {[%clk 0:02:28]}  Qxd1 {[%clk 0:02:28]} 15. Rfxd1 {[%clk 0:02:26]}  Rad8 {[%clk 0:02:26]} 16. g4 {[%clk 0:02:25]}  Be6 {[%clk 0:02:25]} 17. h4 {[%clk 0:02:25]}  f6 {[%clk 0:02:16]} 18. exf6 {[%clk 0:02:24]}  exf6 {[%clk 0:02:17]} 19. Kg2 {[%clk 0:02:19]}  Kf7 {[%clk 0:02:14]} 20. Kg3 {[%clk 0:02:19]}  Rxd1 {[%clk 0:02:14]} 21. Rxd1 {[%clk 0:02:17]}  Bxa2 {[%clk 0:02:13]} 22. Ra1 {[%clk 0:02:16]}  Be6 {[%clk 0:02:13]} 23. Rxa7 {[%clk 0:02:16]}  Re7 {[%clk 0:02:13]} 24. g5 {[%clk 0:02:08]}  f5 {[%clk 0:02:11]} 25. Kf4 {[%clk 0:02:08]}  Rd7 {[%clk 0:02:11]} 26. Bb5 {[%clk 0:02:04]}  Rc7 {[%clk 0:02:09]} 27. Ke5 {[%clk 0:01:56]}  Ke7 {[%clk 0:02:07]} 28. Ba6 {[%clk 0:01:54]}  Bc8 {[%clk 0:02:05]} 29. Bc4 {[%clk 0:01:54]}  Kd8 {[%clk 0:01:26]} 30. Ra8 {[%clk 0:01:41]}  Ke7 {[%clk 0:01:24]} 31. Bd5 {[%clk 0:01:31]}  b5 {[%clk 0:00:52]} 32. b3 {[%clk 0:01:27]}  b4 {[%clk 0:00:51]} 33. c4 {[%clk 0:01:26]}  Kd8 {[%clk 0:00:42]} 34. Kd6 {[%clk 0:01:22]}  Rd7+ {[%clk 0:00:35]} 35. Kxc5 {[%clk 0:01:22]}  Kc7 {[%clk 0:00:36]} 36. Ra7+ {[%clk 0:01:20]}  Kb8 {[%clk 0:00:36]} 37. Rxd7 {[%clk 0:01:20]}  Bxd7 {[%clk 0:00:34]} 38. Kxb4 {[%clk 0:01:21]} 1-0


[Site "https://www.chess.com"]

[Event "Titled Tuesday Blitz November 07 Early 2023"]
[White "Napoli, Nicolo"]
[Black "Manukyan, Sargis A."]
[WhiteFideId "813702"]
[BlackFideId "13303970"]
[WhiteElo "2286"]
[BlackElo "2612"]
[Result "0-1"]
[Round "1"]
[TimeControl "180+1"]
[Date "2023.11.07"]
[WhiteClock "0:00:00"]
[BlackClock "0:00:15"]
[Board "188"]

1. e4 {[%clk 0:02:58]}  c5 {[%clk 0:02:59]} 2. c3 {[%clk 0:02:57]}  d5 {[%clk 0:02:59]} 3. exd5 {[%clk 0:02:57]}  Qxd5 {[%clk 0:03:00]} 4. d4 {[%clk 0:02:57]}  Nf6 {[%clk 0:03:00]} 5. Nf3 {[%clk 0:02:55]}  Bg4 {[%clk 0:02:58]} 6. Be2 {[%clk 0:02:52]}  Nc6 {[%clk 0:02:57]} 7. O-O {[%clk 0:02:44]}  e6 {[%clk 0:02:57]} 8. Na3 {[%clk 0:02:43]}  cxd4 {[%clk 0:02:55]} 9. Nb5 {[%clk 0:02:42]}  Qd8 {[%clk 0:02:55]} 10. Nbxd4 {[%clk 0:02:41]}  Nxd4 {[%clk 0:02:51]} 11. Nxd4 {[%clk 0:02:42]}  Bxe2 {[%clk 0:02:50]} 12. Qxe2 {[%clk 0:02:41]}  Be7 {[%clk 0:02:50]} 13. Qb5+ {[%clk 0:02:34]}  Qd7 {[%clk 0:02:50]} 14. Rd1 {[%clk 0:02:34]}  Qxb5 {[%clk 0:02:41]} 15. Nxb5 {[%clk 0:02:35]}  O-O {[%clk 0:02:41]} 16. Be3 {[%clk 0:02:34]}  a6 {[%clk 0:02:39]} 17. Nd6 {[%clk 0:02:27]}  b5 {[%clk 0:02:30]} 18. Nb7 {[%clk 0:02:16]}  Nd5 {[%clk 0:02:26]} 19. Bc5 {[%clk 0:02:10]}  Bxc5 {[%clk 0:02:24]} 20. Nxc5 {[%clk 0:02:11]}  Rfc8 {[%clk 0:02:24]} 21. Nd7 {[%clk 0:01:41]}  Rc7 {[%clk 0:02:06]} 22. Ne5 {[%clk 0:01:40]}  Rac8 {[%clk 0:02:04]} 23. a3 {[%clk 0:01:33]}  f6 {[%clk 0:02:00]} 24. Nd3 {[%clk 0:01:32]}  Kf7 {[%clk 0:01:59]} 25. Nb4 {[%clk 0:01:31]}  Nxb4 {[%clk 0:01:46]} 26. axb4 {[%clk 0:01:32]}  Rc6 {[%clk 0:01:14]} 27. Rd7+ {[%clk 0:01:32]}  Kg6 {[%clk 0:01:11]} 28. Rad1 {[%clk 0:01:15]}  e5 {[%clk 0:00:58]} 29. R1d3 {[%clk 0:01:08]}  R8c7 {[%clk 0:00:35]} 30. Rg3+ {[%clk 0:00:49]}  Kh6 {[%clk 0:00:35]} 31. Rd8 {[%clk 0:00:50]}  g6 {[%clk 0:00:25]} 32. h4 {[%clk 0:00:44]}  f5 {[%clk 0:00:24]} 33. Rgd3 {[%clk 0:00:40]}  e4 {[%clk 0:00:23]} 34. R3d5 {[%clk 0:00:39]}  Re6 {[%clk 0:00:18]} 35. R8d6 {[%clk 0:00:33]}  Rxd6 {[%clk 0:00:18]} 36. Rxd6 {[%clk 0:00:34]}  Ra7 {[%clk 0:00:19]} 37. Rb6 {[%clk 0:00:27]}  Kh5 {[%clk 0:00:19]} 38. g3 {[%clk 0:00:28]}  Kg4 {[%clk 0:00:20]} 39. Kg2 {[%clk 0:00:28]}  Rd7 {[%clk 0:00:19]} 40. Rxa6 {[%clk 0:00:26]}  Rd2 {[%clk 0:00:19]} 41. Re6 {[%clk 0:00:24]}  Rxb2 {[%clk 0:00:18]} 42. Re5 {[%clk 0:00:24]}  Rc2 {[%clk 0:00:18]} 43. Re7 {[%clk 0:00:20]}  h6 {[%clk 0:00:16]} 44. Re6 {[%clk 0:00:20]}  g5 {[%clk 0:00:17]} 45. hxg5 {[%clk 0:00:20]}  hxg5 {[%clk 0:00:18]} 46. Re5 {[%clk 0:00:21]}  Rxc3 {[%clk 0:00:17]} 47. Rxb5 {[%clk 0:00:21]}  Rc2 {[%clk 0:00:17]} 48. Rc5 {[%clk 0:00:20]}  Rb2 {[%clk 0:00:17]} 49. Rc4 {[%clk 0:00:19]}  Rb3 {[%clk 0:00:16]} 50. Rd4 {[%clk 0:00:16]}  Rc3 {[%clk 0:00:15]} 51. b5 {[%clk 0:00:16]}  Rb3 {[%clk 0:00:15]} 52. Rd5 {[%clk 0:00:16]}  Rb4 {[%clk 0:00:15]} 53. Rc5 {[%clk 0:00:16]}  Rb1 {[%clk 0:00:14]} 54. Re5 {[%clk 0:00:15]}  Rb2 {[%clk 0:00:15]} 55. Rc5 {[%clk 0:00:14]}  e3 {[%clk 0:00:14]} 56. Rc4+ {[%clk 0:00:11]}  f4 {[%clk 0:00:15]} 57. gxf4 {[%clk 0:00:12]}  gxf4 {[%clk 0:00:16]} 58. Kg1 {[%clk 0:00:07]}  Rxf2 {[%clk 0:00:16]} 59. Rb4 {[%clk 0:00:07]}  Rc2 {[%clk 0:00:15]} 60. Rb1 {[%clk 0:00:06]}  Kg3 {[%clk 0:00:14]} 61. b6 {[%clk 0:00:06]}  Rg2+ {[%clk 0:00:14]} 62. Kh1 {[%clk 0:00:06]}  Rh2+ {[%clk 0:00:14]} 63. Kg1 {[%clk 0:00:00]}  f3 {[%clk 0:00:15]} 0-1


[Site "https://www.chess.com"]

[Event "Titled Tuesday Blitz November 07 Early 2023"]
[White "Lamaze, Simon"]
[Black "Lesbekova, Assel"]
[WhiteFideId "36069264"]
[BlackFideId "13713248"]
[WhiteElo "2611"]
[BlackElo "2284"]
[Result "1-0"]
[Round "1"]
[TimeControl "180+1"]
[Date "2023.11.07"]
[WhiteClock "0:02:03"]
[BlackClock "0:01:31"]
[Board "189"]

1. e4 {[%clk 0:03:00]}  e5 {[%clk 0:02:53]} 2. Nf3 {[%clk 0:02:47]}  Nf6 {[%clk 0:02:53]} 3. Nxe5 {[%clk 0:02:45]}  Nxe4 {[%clk 0:02:53]} 4. Qe2 {[%clk 0:02:44]}  Qe7 {[%clk 0:02:53]} 5. Qxe4 {[%clk 0:02:44]}  d6 {[%clk 0:02:54]} 6. d4 {[%clk 0:02:43]}  dxe5 {[%clk 0:02:54]} 7. dxe5 {[%clk 0:02:43]}  Nc6 {[%clk 0:02:54]} 8. Nc3 {[%clk 0:02:41]}  Qxe5 {[%clk 0:02:54]} 9. Qxe5+ {[%clk 0:02:41]}  Nxe5 {[%clk 0:02:55]} 10. Nb5 {[%clk 0:02:41]}  Bb4+ {[%clk 0:02:48]} 11. c3 {[%clk 0:02:39]}  Ba5 {[%clk 0:02:48]} 12. Bf4 {[%clk 0:02:38]}  f6 {[%clk 0:02:49]} 13. Bxe5 {[%clk 0:02:27]}  fxe5 {[%clk 0:02:50]} 14. Na3 {[%clk 0:02:28]}  c6 {[%clk 0:02:48]} 15. Bd3 {[%clk 0:02:28]}  O-O {[%clk 0:02:47]} 16. Nc4 {[%clk 0:02:26]}  Bc7 {[%clk 0:02:46]} 17. f3 {[%clk 0:02:27]}  b5 {[%clk 0:02:46]} 18. Nd2 {[%clk 0:02:27]}  Bf5 {[%clk 0:02:44]} 19. Bxf5 {[%clk 0:02:26]}  Rxf5 {[%clk 0:02:45]} 20. Ne4 {[%clk 0:02:27]}  Rd8 {[%clk 0:02:44]} 21. Ke2 {[%clk 0:02:27]}  Rf7 {[%clk 0:02:43]} 22. Rad1 {[%clk 0:02:27]}  Rfd7 {[%clk 0:02:43]} 23. Rxd7 {[%clk 0:02:26]}  Rxd7 {[%clk 0:02:44]} 24. Ra1 {[%clk 0:02:23]}  a5 {[%clk 0:02:38]} 25. a4 {[%clk 0:02:23]}  Rd5 {[%clk 0:02:34]} 26. b3 {[%clk 0:02:20]}  Kf7 {[%clk 0:02:32]} 27. h4 {[%clk 0:02:17]}  h6 {[%clk 0:02:30]} 28. h5 {[%clk 0:02:17]}  Ke6 {[%clk 0:02:29]} 29. g4 {[%clk 0:02:14]}  b4 {[%clk 0:02:18]} 30. c4 {[%clk 0:02:13]}  Rd4 {[%clk 0:02:11]} 31. Rd1 {[%clk 0:02:12]}  Rxd1 {[%clk 0:02:02]} 32. Kxd1 {[%clk 0:02:13]}  Bb6 {[%clk 0:02:03]} 33. Ke2 {[%clk 0:02:13]}  Bd4 {[%clk 0:02:03]} 34. Kd3 {[%clk 0:02:12]}  c5 {[%clk 0:02:03]} 35. Ng3 {[%clk 0:02:11]}  Kf6 {[%clk 0:01:57]} 36. Ke4 {[%clk 0:02:11]}  Kg5 {[%clk 0:01:55]} 37. Nf5 {[%clk 0:02:11]}  g6 {[%clk 0:01:54]} 38. hxg6 {[%clk 0:02:08]}  Kxg6 {[%clk 0:01:55]} 39. Ne7+ {[%clk 0:02:08]}  Kf6 {[%clk 0:01:44]} 40. Nc6 {[%clk 0:02:09]}  Ke6 {[%clk 0:01:43]} 41. Nxa5 {[%clk 0:02:09]}  Kd7 {[%clk 0:01:42]} 42. Kd5 {[%clk 0:02:05]}  Kc7 {[%clk 0:01:31]} 43. Nc6 {[%clk 0:02:03]} 1-0


[Site "https://www.chess.com"]

[Event "Titled Tuesday Blitz November 07 Early 2023"]
[White "Vifleemskaia, Svetlana"]
[Black "Feuerstack, Aljoscha"]
[WhiteFideId "4129490"]
[BlackFideId "4681932"]
[WhiteElo "2271"]
[BlackElo "2607"]
[Result "1-0"]
[Round "1"]
[TimeControl "180+1"]
[Date "2023.11.07"]
[WhiteClock "0:01:55"]
[BlackClock "0:00:08"]
[Board "194"]

1. d4 {[%clk 0:03:00]}  Nf6 {[%clk 0:02:58]} 2. c4 {[%clk 0:03:01]}  c5 {[%clk 0:02:56]} 3. d5 {[%clk 0:03:01]}  b5 {[%clk 0:02:56]} 4. Nd2 {[%clk 0:03:00]}  d6 {[%clk 0:02:34]} 5. b3 {[%clk 0:02:57]}  g6 {[%clk 0:02:33]} 6. Bb2 {[%clk 0:02:57]}  Bg7 {[%clk 0:02:33]} 7. e4 {[%clk 0:02:56]}  O-O {[%clk 0:02:33]} 8. cxb5 {[%clk 0:02:55]}  Qa5 {[%clk 0:02:30]} 9. Qc2 {[%clk 0:02:55]}  a6 {[%clk 0:02:10]} 10. Bc3 {[%clk 0:02:51]}  Qc7 {[%clk 0:02:00]} 11. a4 {[%clk 0:02:51]}  axb5 {[%clk 0:01:49]} 12. Bxb5 {[%clk 0:02:50]}  Ba6 {[%clk 0:01:48]} 13. Bxa6 {[%clk 0:02:48]}  Nxa6 {[%clk 0:01:49]} 14. Ngf3 {[%clk 0:02:47]}  Rfb8 {[%clk 0:01:49]} 15. O-O {[%clk 0:02:45]}  Nb4 {[%clk 0:01:49]} 16. Bxb4 {[%clk 0:02:44]}  Rxb4 {[%clk 0:01:50]} 17. Nc4 {[%clk 0:02:40]}  Rab8 {[%clk 0:01:48]} 18. Ra3 {[%clk 0:02:37]}  Nd7 {[%clk 0:01:44]} 19. a5 {[%clk 0:02:35]}  Qb7 {[%clk 0:01:39]} 20. a6 {[%clk 0:02:34]}  Qc8 {[%clk 0:01:17]} 21. a7 {[%clk 0:02:31]}  Ra8 {[%clk 0:01:17]} 22. Na5 {[%clk 0:02:23]}  Rb6 {[%clk 0:00:42]} 23. Nc6 {[%clk 0:02:21]}  Rxc6 {[%clk 0:00:30]} 24. dxc6 {[%clk 0:02:21]}  Qxc6 {[%clk 0:00:31]} 25. Qc4 {[%clk 0:02:18]}  Qb7 {[%clk 0:00:30]} 26. Qa6 {[%clk 0:02:18]}  Qxe4 {[%clk 0:00:28]} 27. h3 {[%clk 0:02:17]}  Bf6 {[%clk 0:00:27]} 28. Re1 {[%clk 0:02:14]}  Qb4 {[%clk 0:00:26]} 29. Qc6 {[%clk 0:01:56]}  Nb6 {[%clk 0:00:08]} 30. Ra6 {[%clk 0:01:55]} 1-0


[Site "https://www.chess.com"]

[Event "Titled Tuesday Blitz November 07 Early 2023"]
[White "Sharapov, Evgeny"]
[Black "Nissinen, Niilo Man"]
[WhiteFideId "14103133"]
[BlackFideId "30950767"]
[WhiteElo "2606"]
[BlackElo "2266"]
[Result "1-0"]
[Round "1"]
[TimeControl "180+1"]
[Date "2023.11.07"]
[WhiteClock "0:00:45"]
[BlackClock "0:00:00"]
[Board "195"]

1. Nh3 {[%clk 0:02:57]}  Nf6 {[%clk 0:02:57]} 2. Ng1 {[%clk 0:02:57]}  e5 {[%clk 0:02:56]} 3. g3 {[%clk 0:02:57]}  d5 {[%clk 0:02:56]} 4. Bg2 {[%clk 0:02:58]}  Nc6 {[%clk 0:02:56]} 5. c4 {[%clk 0:02:58]}  Be6 {[%clk 0:02:52]} 6. cxd5 {[%clk 0:02:57]}  Nxd5 {[%clk 0:02:49]} 7. d3 {[%clk 0:02:55]}  Be7 {[%clk 0:02:48]} 8. Nf3 {[%clk 0:02:55]}  O-O {[%clk 0:02:47]} 9. O-O {[%clk 0:02:55]}  f5 {[%clk 0:02:42]} 10. Nc3 {[%clk 0:02:54]}  Kh8 {[%clk 0:02:03]} 11. Bd2 {[%clk 0:02:53]}  h6 {[%clk 0:01:52]} 12. Rc1 {[%clk 0:02:52]}  Qd7 {[%clk 0:01:52]} 13. Nxd5 {[%clk 0:02:51]}  Bxd5 {[%clk 0:01:51]} 14. Bc3 {[%clk 0:02:52]}  Qe6 {[%clk 0:01:49]} 15. b3 {[%clk 0:02:47]}  Rad8 {[%clk 0:01:48]} 16. Qc2 {[%clk 0:02:42]}  e4 {[%clk 0:01:39]} 17. dxe4 {[%clk 0:02:42]}  Bxe4 {[%clk 0:01:28]} 18. Qb2 {[%clk 0:02:41]}  Bf6 {[%clk 0:01:19]} 19. Rfd1 {[%clk 0:02:40]}  Bxc3 {[%clk 0:01:08]} 20. Qxc3 {[%clk 0:02:40]}  Rd5 {[%clk 0:01:00]} 21. Rxd5 {[%clk 0:02:31]}  Qxd5 {[%clk 0:01:00]} 22. Qd2 {[%clk 0:02:13]}  Rd8 {[%clk 0:00:48]} 23. Qxd5 {[%clk 0:02:12]}  Rxd5 {[%clk 0:00:46]} 24. Kf1 {[%clk 0:02:12]}  Kg8 {[%clk 0:00:37]} 25. Ke1 {[%clk 0:02:12]}  Nb4 {[%clk 0:00:27]} 26. a4 {[%clk 0:01:57]}  Bc2 {[%clk 0:00:20]} 27. Nd2 {[%clk 0:01:50]}  Re5 {[%clk 0:00:18]} 28. Kf1 {[%clk 0:01:44]}  c6 {[%clk 0:00:16]} 29. Bf3 {[%clk 0:01:32]}  Re7 {[%clk 0:00:16]} 30. h4 {[%clk 0:01:28]}  Rd7 {[%clk 0:00:16]} 31. Ke1 {[%clk 0:01:28]}  Re7 {[%clk 0:00:16]} 32. Kf1 {[%clk 0:01:28]}  Rd7 {[%clk 0:00:16]} 33. Ke1 {[%clk 0:01:18]}  Re7 {[%clk 0:00:16]} 34. Ra1 {[%clk 0:01:18]}  Bd3 {[%clk 0:00:11]} 35. Kd1 {[%clk 0:01:11]}  Be4 {[%clk 0:00:08]} 36. Nxe4 {[%clk 0:01:07]}  fxe4 {[%clk 0:00:08]} 37. Bg4 {[%clk 0:01:07]}  Nd5 {[%clk 0:00:08]} 38. Kc2 {[%clk 0:01:00]}  Rf7 {[%clk 0:00:08]} 39. Be6 {[%clk 0:00:59]}  Kf8 {[%clk 0:00:06]} 40. Bxf7 {[%clk 0:00:59]}  Kxf7 {[%clk 0:00:07]} 41. Rd1 {[%clk 0:00:56]}  Ke6 {[%clk 0:00:07]} 42. Kd2 {[%clk 0:00:46]}  Ke5 {[%clk 0:00:07]} 43. e3 {[%clk 0:00:46]}  a5 {[%clk 0:00:04]} 44. Rf1 {[%clk 0:00:46]}  Kf5 {[%clk 0:00:02]} 45. f3 {[%clk 0:00:46]}  exf3 {[%clk 0:00:01]} 46. Rxf3+ {[%clk 0:00:46]}  Ke4 {[%clk 0:00:00]} 47. Rf7 {[%clk 0:00:45]} 1-0


[Site "https://www.chess.com"]

[Event "Titled Tuesday Blitz November 07 Early 2023"]
[White "Streltsov, Alexey"]
[Black "LionKing2367890"]
[WhiteFideId "24104434"]
[WhiteElo "2606"]
[BlackElo "2263"]
[Result "1-0"]
[Round "1"]
[TimeControl "180+1"]
[Date "2023.11.07"]
[WhiteClock "0:01:05"]
[BlackClock "0:01:00"]
[Board "197"]

1. d4 {[%clk 0:02:59]}  Nf6 {[%clk 0:02:59]} 2. Nc3 {[%clk 0:02:57]}  e6 {[%clk 0:03:00]} 3. e4 {[%clk 0:02:57]}  d5 {[%clk 0:03:00]} 4. e5 {[%clk 0:02:57]}  Nfd7 {[%clk 0:03:01]} 5. f4 {[%clk 0:02:58]}  c5 {[%clk 0:03:00]} 6. Nf3 {[%clk 0:02:58]}  Nc6 {[%clk 0:03:01]} 7. Be3 {[%clk 0:02:45]}  cxd4 {[%clk 0:02:43]} 8. Nxd4 {[%clk 0:02:45]}  Bb4 {[%clk 0:02:43]} 9. Nb5 {[%clk 0:02:29]}  O-O {[%clk 0:02:40]} 10. a3 {[%clk 0:02:30]}  Be7 {[%clk 0:02:36]} 11. Bd3 {[%clk 0:02:08]}  f5 {[%clk 0:02:29]} 12. exf6 {[%clk 0:01:49]}  Nxf6 {[%clk 0:02:27]} 13. O-O {[%clk 0:01:49]}  a6 {[%clk 0:02:25]} 14. Nd4 {[%clk 0:01:48]}  Bc5 {[%clk 0:02:13]} 15. Be2 {[%clk 0:01:21]}  Nxd4 {[%clk 0:01:43]} 16. Bxd4 {[%clk 0:01:21]}  Qb6 {[%clk 0:01:44]} 17. Bxc5 {[%clk 0:01:17]}  Qxc5+ {[%clk 0:01:36]} 18. Kh1 {[%clk 0:01:17]}  b5 {[%clk 0:01:30]} 19. Bd3 {[%clk 0:01:15]}  Bb7 {[%clk 0:01:30]} 20. Ne2 {[%clk 0:01:14]}  Ng4 {[%clk 0:01:27]} 21. Nd4 {[%clk 0:01:05]}  Ne3 {[%clk 0:01:11]} 22. Qh5 {[%clk 0:01:05]}  Qxd4 {[%clk 0:01:02]} 23. Bxh7+ {[%clk 0:01:04]}  Kh8 {[%clk 0:00:59]} 24. Bg6+ {[%clk 0:01:05]}  Kg8 {[%clk 0:01:00]} 25. Qh7# {[%clk 0:01:05]} 1-0


[Site "https://www.chess.com"]

[Event "Titled Tuesday Blitz November 07 Early 2023"]
[White "Kuchava, Ana"]
[Black "Souleidis, Georgios"]
[WhiteFideId "13605348"]
[BlackFideId "4206827"]
[WhiteElo "2262"]
[BlackElo "2604"]
[Result "0-1"]
[Round "1"]
[TimeControl "180+1"]
[Date "2023.11.07"]
[WhiteClock "0:00:00"]
[BlackClock "0:00:39"]
[Board "198"]

1. d4 {[%clk 0:03:00]}  Nf6 {[%clk 0:02:58]} 2. Nf3 {[%clk 0:02:59]}  g6 {[%clk 0:02:58]} 3. c4 {[%clk 0:02:57]}  Bg7 {[%clk 0:02:58]} 4. Nc3 {[%clk 0:02:55]}  O-O {[%clk 0:02:58]} 5. e4 {[%clk 0:02:52]}  d6 {[%clk 0:02:58]} 6. Be2 {[%clk 0:02:52]}  e5 {[%clk 0:02:56]} 7. O-O {[%clk 0:02:49]}  Bg4 {[%clk 0:02:56]} 8. Be3 {[%clk 0:02:21]}  Bxf3 {[%clk 0:02:52]} 9. Bxf3 {[%clk 0:02:21]}  exd4 {[%clk 0:02:53]} 10. Bxd4 {[%clk 0:02:21]}  Nc6 {[%clk 0:02:52]} 11. Be3 {[%clk 0:02:21]}  Re8 {[%clk 0:02:52]} 12. Re1 {[%clk 0:02:17]}  Nd7 {[%clk 0:02:51]} 13. Qd2 {[%clk 0:02:14]}  Bxc3 {[%clk 0:02:51]} 14. Qxc3 {[%clk 0:02:10]}  Qf6 {[%clk 0:02:51]} 15. Qxf6 {[%clk 0:01:58]}  Nxf6 {[%clk 0:02:51]} 16. Bg5 {[%clk 0:01:58]}  Kg7 {[%clk 0:02:36]} 17. Rad1 {[%clk 0:01:57]}  Nd7 {[%clk 0:02:29]} 18. g3 {[%clk 0:01:47]}  a5 {[%clk 0:02:16]} 19. Bg2 {[%clk 0:01:35]}  f6 {[%clk 0:01:59]} 20. Bc1 {[%clk 0:01:22]}  Re7 {[%clk 0:01:50]} 21. f3 {[%clk 0:01:11]}  a4 {[%clk 0:01:49]} 22. Kf2 {[%clk 0:01:10]}  Nde5 {[%clk 0:01:45]} 23. Bf1 {[%clk 0:01:05]}  Na5 {[%clk 0:01:34]} 24. Rd4 {[%clk 0:00:56]}  Nec6 {[%clk 0:01:26]} 25. Rdd1 {[%clk 0:00:39]}  Nb4 {[%clk 0:01:26]} 26. Bd2 {[%clk 0:00:15]}  Nac6 {[%clk 0:01:12]} 27. Bxb4 {[%clk 0:00:01]}  Nxb4 {[%clk 0:01:13]} 28. a3 {[%clk 0:00:02]}  Nc6 {[%clk 0:01:12]} 29. Rd2 {[%clk 0:00:02]}  b6 {[%clk 0:01:12]} 30. Red1 {[%clk 0:00:03]}  Na5 {[%clk 0:01:09]} 31. Rd5 {[%clk 0:00:03]}  Nb3 {[%clk 0:01:07]} 32. Be2 {[%clk 0:00:03]}  Nc5 {[%clk 0:01:05]} 33. R5d2 {[%clk 0:00:03]}  Rae8 {[%clk 0:00:51]} 34. Rd5 {[%clk 0:00:03]}  f5 {[%clk 0:00:48]} 35. e5 {[%clk 0:00:03]}  Rxe5 {[%clk 0:00:47]} 36. Rxe5 {[%clk 0:00:04]}  Rxe5 {[%clk 0:00:48]} 37. Rd2 {[%clk 0:00:02]}  g5 {[%clk 0:00:41]} 38. Rc2 {[%clk 0:00:00]}  f4 {[%clk 0:00:39]} 0-1


[Site "https://www.chess.com"]